[Event "FIDE World Rapid-ch Open 2018"]
[White "Nihal Sarin"]
[Black "Novikov, Stanislav"]
[Site "St. Petersburg"]
[Round "13.57"]
[Annotator "ChessBase"]
[Result "1-0"]
[Date "2018.12.28"]
[WhiteElo "2576"]
[BlackElo "2540"]
[PlyCount "123"]
[TimeControl "900+10"]

1. e4 {[%emt 0:0:0]} g6 {[%emt 0:0:0]} 2. d4 {[%emt 0:0:4]} Bg7 {[%emt 0:0:0]} 3. Nf3 {[%emt 0:0:22]} c6 {[%emt 0:0:0]} 4. h3 {[%emt 0:0:15]} d6 {[%emt 0:0:6]
} 5. c4 {[%emt 0:0:57]} Nf6 {[%emt 0:0:21]} 6. Nc3 {[%emt 0:0:0]} 0-0 {[%emt 0:0:3]} 7. Be3 {[%emt 0:0:8]} a6 {[%emt 0:0:39]} 8. a4 {[%emt 0:1:22]
} a5 {[%emt 0:0:2]} 9. Be2 {[%emt 0:0:2]} Na6 {[%emt 0:0:9]
} 10. 0-0 {[%emt 0:0:3]} Nd7 {[%emt 0:0:12]} 11. Qd2 {[%emt 0:0:5]} Re8 {[%emt 0:0:24]
} 12. Rad1 {[%emt 0:0:5]} e5 {[%emt 0:1:24]} 13. d5 {[%emt 0:0:0]} Bf8 {[%emt 0:0:3]} 14. Ne1 {[%emt 0:1:18]} Nac5 {[%emt 0:0:20]} 15. Qc2 {[%emt 0:1:7]} Qb6 {[%emt 0:0:38]} 16. Nd3 {[%emt 0:0:15]} Qb3 {[%emt 0:0:31]
} 17. Qd2 {[%emt 0:0:26]} Nxd3 {[%emt 0:4:1]} 18. Bxd3 {[%emt 0:0:16]
} Nc5 {[%emt 0:0:1]} 19. f4 {[%emt 0:5:25]} Nxd3 {[%emt 0:0:0]} 20. Qxd3 {[%emt 0:0:2]} f5 {[%emt 0:0:50]} 21. c5 {[%emt 0:1:36]} dxc5 {[%emt 0:0:37]} 22. fxe5 {[%emt 0:0:3]} Rxe5 {[%emt 0:0:16]} 23. Bf4 {[%emt 0:0:4]
} fxe4 {[%emt 0:1:0]} 24. Qe2 {[%emt 0:2:7]} Rf5 {[%emt 0:0:0]} 25. dxc6 {[%emt 0:0:36]} bxc6 {[%emt 0:0:22]} 26. Qxe4 {[%emt 0:0:9]} Ba6 {[%emt 0:0:50]} 27. Rf2 {[%emt 0:0:29]} Qc4 {[%emt 0:0:31]} 28. Qxc6 {[%emt 0:0:21]
} Rc8 {[%emt 0:0:1]} 29. Qb6 {[%emt 0:0:13]} Bg7 {[%emt 0:0:0]} 30. Nd5 {[%emt 0:0:26]} Re8 {[%emt 0:0:25]} 31. Ne3 {[%emt 0:0:19]} Qxa4 {[%emt 0:0:5]} 32. b3 {[%emt 0:0:14]} Qb5 {[%emt 0:0:9]} 33. Qxb5 {[%emt 0:0:5]
} Bxb5 {[%emt 0:0:1]} 34. Nxf5 {[%emt 0:0:2]} gxf5 {[%emt 0:0:0]} 35. Kh2 {[%emt 0:0:9]} c4 {[%emt 0:0:13]} 36. bxc4 {[%emt 0:0:27]} Bxc4 {[%emt 0:0:1]} 37. Rc1 {[%emt 0:0:10]} Bb3 {[%emt 0:0:4]} 38. Rf3 {[%emt 0:0:12]
} a4 {[%emt 0:0:1]} 39. Rc7 {[%emt 0:0:3]} Kh8 {[%emt 0:0:0]} 40. Rd3 {[%emt 0:0:2]} Bg8 {[%emt 0:0:19]} 41. Ra7 {[%emt 0:0:17]} Bb3 {[%emt 0:0:9]} 42. Rdd7 {[%emt 0:0:5]} Bb2 {[%emt 0:0:1]} 43. Rxh7+ Kg8 44. Rhb7 {[%emt 0:0:21]} Bd4 {[%emt 0:0:12]} 45. Ra5 {[%emt 0:0:1]} Rf8 {[%emt 0:0:7]
} 46. Be5 {[%emt 0:0:31]} Bxe5+ {[%emt 0:0:21]} 47. Rxe5 {[%emt 0:0:1]
} f4 {[%emt 0:0:4]} 48. Rg5+ {[%emt 0:0:9]} Kh8 {[%emt 0:0:0]} 49. Rh5+ {[%emt 0:0:0]} Kg8 {[%emt 0:0:0]} 50. Rg5+ {[%emt 0:0:1]} Kh8 {[%emt 0:0:1]} 51. Ra5 {[%emt 0:0:1]} Kg8 {[%emt 0:0:8]} 52. Raa7 {[%emt 0:0:2]
} Re8 {[%emt 0:0:17]} 53. h4 {[%emt 0:0:6]} Bd5 {[%emt 0:0:0]} 54. Rc7 {[%emt 0:0:5]} f3 {[%emt 0:0:10]} 55. gxf3 {[%emt 0:0:13]} Bxf3 {[%emt 0:0:1]} 56. Rxa4 {[%emt 0:0:15]} Bh5 {[%emt 0:0:35]} 57. Raa7 {[%emt 0:0:8]
} Re4 {[%emt 0:0:18]} 58. Rg7+ {[%emt 0:0:31]} Kf8 {[%emt 0:0:0]} 59. Rh7 {[%emt 0:0:2]} Rxh4+ {[%emt 0:0:27]} 60. Kg3 {[%emt 0:0:1]} Rg4+ {[%emt 0:0:1]} 61. Kh3 {[%emt 0:0:1]} Rg5 {[%emt 0:0:8]} 62. Rh8+ {[%emt 0:0:2]
} 1-0

[Event "FIDE World Rapid-ch Open 2018"]
[White "Vokhidov, Shamsiddin"]
[Black "Miton, Kamil"]
[Site "St. Petersburg"]
[Round "13.58"]
[Annotator "ChessBase"]
[Result "1-0"]
[Date "2018.12.28"]
[WhiteElo "2480"]
[BlackElo "2588"]
[PlyCount "79"]
[TimeControl "900+10"]

1. e4 {[%emt 0:0:0]} e6 {[%emt 0:0:0]} 2. d4 {[%emt 0:0:2]} d5 {[%emt 0:0:0]} 3. Nd2 {[%emt 0:0:3]} dxe4 {[%emt 0:0:0]} 4. Nxe4 {[%emt 0:0:1]} Bd7 {[%emt 0:0:0]} 5. Nf3 {[%emt 0:0:2]} Bc6 {[%emt 0:0:1]} 6. Bd3 {[%emt 0:0:1]
} Nd7 {[%emt 0:0:3]} 7. c3 {[%emt 0:0:1]} Bxe4 {[%emt 0:0:0]} 8. Bxe4 {[%emt 0:0:2]} c6 {[%emt 0:0:1]} 9. Bf4 {[%emt 0:0:26]} Ngf6 {[%emt 0:0:8]} 10. Bc2 {[%emt 0:0:2]} g6 {[%emt 0:0:49]} 11. Qe2 {[%emt 0:0:0]} Bg7 {[%emt 0:0:29]} 12. a4 {[%emt 0:0:13]} 0-0 {[%emt 0:0:40]} 13. 0-0 {[%emt 0:0:16]} a5 {[%emt 0:0:13]} 14. h3 {[%emt 0:0:7]} Nd5 {[%emt 0:0:0]} 15. Bg3 {[%emt 0:0:10]} Qb6 {[%emt 0:0:44]} 16. Bd3 {[%emt 0:0:9]} Rfe8 {[%emt 0:0:45]} 17. Rfe1 {[%emt 0:0:1]} N7f6 {[%emt 0:0:19]} 18. Bh2 {[%emt 0:0:45]
} Bh6 {[%emt 0:0:8]} 19. Ne5 {[%emt 0:1:42]} Nf4 {[%emt 0:0:0]} 20. Qf3 {[%emt 0:0:29]} N6d5 {[%emt 0:5:54]} 21. Be4 {[%emt 0:4:18]} f5 {[%emt 0:0:36]} 22. Bxd5 {[%emt 0:1:18]} Nxd5 {[%emt 0:0:2]} 23. Re2 {[%emt 0:0:28]
} Re7 {[%emt 0:0:35]} 24. Nd3 {[%emt 0:1:39]} Rae8 {[%emt 0:0:0]} 25. Rae1 {[%emt 0:0:6]} Qd8 {[%emt 0:0:9]} 26. Nc5 {[%emt 0:0:19]} b6 {[%emt 0:0:13]} 27. Nd3 {[%emt 0:0:43]} Bg7 {[%emt 0:0:8]} 28. Bg3 {[%emt 0:0:10]
} Bf6 {[%emt 0:0:21]} 29. Be5 {[%emt 0:0:18]} Bxe5 {[%emt 0:0:0]} 30. Nxe5 {[%emt 0:0:1]} Qc7 {[%emt 0:0:1]} 31. h4 {[%emt 0:0:53]} c5 {[%emt 0:0:20]} 32. dxc5 {[%emt 0:0:2]} bxc5 {[%emt 0:0:8]} 33. h5 {[%emt 0:0:14]
} g5 {[%emt 0:0:17]} 34. h6 {[%emt 0:0:3]} g4 {[%emt 0:0:17]} 35. Qg3 {[%emt 0:0:4]} Kh8 {[%emt 0:1:18]} 36. Qh4 {[%emt 0:0:18]} Rf8 {[%emt 0:0:19]
} 37. Rd2 {[%emt 0:0:30]} Nf6 {[%emt 0:0:19]} 38. f3 {[%emt 0:0:0]} c4 {[%emt 0:1:18]} 39. Kh1 {[%emt 0:0:20]} Qb7 {[%emt 0:0:26]} 40. Qxf6+ {[%emt 0:0:36]} 1-0

[Event "FIDE World Rapid-ch Open 2018"]
[White "Kovalev, Vladislav"]
[Black "Sanal, Vahap"]
[Site "St. Petersburg"]
[Round "13.59"]
[Annotator "ChessBase"]
[Result "1/2-1/2"]
[Date "2018.12.28"]
[WhiteElo "2683"]
[BlackElo "2490"]
[PlyCount "130"]
[TimeControl "900+10"]

1. e4 {[%emt 0:0:56]} e5 {[%emt 0:0:0]} 2. Nf3 {[%emt 0:0:1]} Nc6 {[%emt 0:0:0]
} 3. Nc3 {[%emt 0:0:0]} Nf6 {[%emt 0:0:0]} 4. h3 {[%emt 0:0:0]} d5 {[%emt 0:0:0]} 5. exd5 {[%emt 0:0:1]} Nxd5 {[%emt 0:0:0]} 6. Bb5 {[%emt 0:0:1]} Nxc3 {[%emt 0:0:9]} 7. bxc3 {[%emt 0:0:1]} Bd6 {[%emt 0:0:0]} 8. 0-0 {[%emt 0:0:2]} 0-0 {[%emt 0:0:3]} 9. Re1 {[%emt 0:0:1]} Qf6 {[%emt 0:0:39]} 10. d3 {[%emt 0:0:1]} h6 {[%emt 0:0:6]} 11. Nd2 {[%emt 0:0:2]
} Qg6 {[%emt 0:0:45]} 12. Qf3 {[%emt 0:0:1]} Bd7 {[%emt 0:0:0]} 13. Ne4 {[%emt 0:1:35]} a6 {[%emt 0:2:10]} 14. Bc4 {[%emt 0:0:14]} Na5 {[%emt 0:0:51]} 15. Bd5 {[%emt 0:0:4]} c6 {[%emt 0:0:38]} 16. Bb3 {[%emt 0:0:0]} Be7 {[%emt 0:0:57]} 17. Qg3 {[%emt 0:0:39]} Qxg3 {[%emt 0:3:14]} 18. Nxg3 {[%emt 0:0:1]} b6 {[%emt 0:0:10]} 19. d4 {[%emt 0:3:13]} Bh4 {[%emt 0:0:0]} 20. Rxe5 {[%emt 0:0:24]} Bxg3 {[%emt 0:0:6]} 21. fxg3 {[%emt 0:0:0]} Rfe8 {[%emt 0:0:17]} 22. Bf4 {[%emt 0:0:30]} Rxe5 {[%emt 0:0:26]} 23. Bxe5 {[%emt 0:0:2]} Nxb3 {[%emt 0:0:22]} 24. cxb3 {[%emt 0:1:54]} Re8 {[%emt 0:0:16]
} 25. Kf2 {[%emt 0:1:11]} h5 {[%emt 0:0:8]} 26. a4 {[%emt 0:0:0]} f6 {[%emt 0:0:8]} 27. Bc7 {[%emt 0:0:4]} b5 {[%emt 0:0:1]} 28. c4 {[%emt 0:1:28]} bxc4 {[%emt 0:0:14]} 29. bxc4 {[%emt 0:0:1]} Be6 {[%emt 0:0:0]} 30. Rc1 {[%emt 0:0:12]} Kf7 {[%emt 0:0:26]} 31. a5 {[%emt 0:0:3]} Re7 {[%emt 0:0:27]} 32. Bb6 {[%emt 0:0:6]} Re8 {[%emt 0:0:6]} 33. Kf3 {[%emt 0:3:31]
} Bf5 {[%emt 0:0:14]} 34. Kf2 {[%emt 0:0:27]} Be6 {[%emt 0:0:0]} 35. Rc3 {[%emt 0:0:1]} Re7 {[%emt 0:0:17]} 36. Bc5 {[%emt 0:0:11]} Re8 {[%emt 0:0:4]} 37. Ba7 {[%emt 0:0:44]} Re7 {[%emt 0:0:6]} 38. Bb6 {[%emt 0:0:1]
} Re8 {[%emt 0:0:2]} 39. Kf3 {[%emt 0:0:6]} Re7 {[%emt 0:0:0]} 40. Kf4 {[%emt 0:0:10]} Re8 {[%emt 0:0:7]} 41. Bc5 {[%emt 0:0:20]} Rb8 {[%emt 0:0:32]} 42. Bb6 {[%emt 0:0:25]} Re8 {[%emt 0:0:2]} 43. Kf3 {[%emt 0:0:44]
} Bf5 {[%emt 0:0:6]} 44. g4 {[%emt 0:0:18]} hxg4+ {[%emt 0:0:0]} 45. hxg4 {[%emt 0:0:0]} Be6 {[%emt 0:0:1]} 46. Kf4 {[%emt 0:0:37]} g5+ {[%emt 0:0:16]} 47. Kf3 {[%emt 0:0:1]} Rh8 {[%emt 0:0:8]} 48. Rc1 {[%emt 0:0:43]
} Rh4 {[%emt 0:0:8]} 49. Kf2 {[%emt 0:0:28]} Rxg4 {[%emt 0:0:0]} 50. g3 {[%emt 0:0:2]} Re4 {[%emt 0:0:22]} 51. Re1 {[%emt 0:0:9]} Rg4 {[%emt 0:0:26]} 52. Kf3 {[%emt 0:0:17]} f5 {[%emt 0:0:1]} 53. Re5 {[%emt 0:0:0]} f4 {[%emt 0:0:28]} 54. gxf4 {[%emt 0:0:1]} Rxf4+ {[%emt 0:0:2]} 55. Ke3 {[%emt 0:0:1]} Bxc4 {[%emt 0:1:9]} 56. Rxg5 {[%emt 0:0:3]} Rh4 {[%emt 0:0:4]
} 57. Bc5 {[%emt 0:0:19]} Rh3+ {[%emt 0:0:7]} 58. Kf4 {[%emt 0:0:5]
} Rh1 {[%emt 0:0:18]} 59. Ke5 {[%emt 0:0:13]} Rh6 {[%emt 0:0:0]} 60. Rf5+ {[%emt 0:0:12]} Ke8 {[%emt 0:0:12]} 61. Rf8+ {[%emt 0:0:19]} Kd7 {[%emt 0:0:1]} 62. Ra8 {[%emt 0:0:6]} Re6+ {[%emt 0:0:4]} 63. Kf5 {[%emt 0:0:7]
} Bd3+ {[%emt 0:0:2]} 64. Kf4 {[%emt 0:0:3]} Re4+ {[%emt 0:0:0]} 65. Kf3 {[%emt 0:0:6]} Rh4 {[%emt 0:0:8]} 1/2-1/2

[Event "FIDE World Rapid-ch Open 2018"]
[White "Jones, Gawain C B"]
[Black "Khusnutdinov, Rustam"]
[Site "St. Petersburg"]
[Round "13.60"]
[Annotator "ChessBase"]
[Result "1-0"]
[Date "2018.12.28"]
[WhiteElo "2682"]
[BlackElo "2470"]
[PlyCount "79"]
[TimeControl "900+10"]

1. e4 {[%emt 0:0:0]} e6 {[%emt 0:1:21]} 2. d3 {[%emt 0:0:0]} c5 {[%emt 0:0:0]} 3. Nf3 {[%emt 0:0:0]} Nc6 {[%emt 0:0:1]} 4. g3 {[%emt 0:0:2]} Nge7 {[%emt 0:0:1]} 5. Bg2 {[%emt 0:0:4]} g6 {[%emt 0:0:1]} 6. h4 {[%emt 0:0:2]
} h6 {[%emt 0:0:20]} 7. c3 {[%emt 0:0:10]} Bg7 {[%emt 0:0:43]} 8. Be3 {[%emt 0:0:28]} b6 {[%emt 0:1:10]} 9. 0-0 {[%emt 0:0:38]} d5 {[%emt 0:0:11]
} 10. Re1 {[%emt 0:0:52]} 0-0 {[%emt 0:0:44]} 11. e5 {[%emt 0:0:0]} Ba6 {[%emt 0:0:59]} 12. Bf4 {[%emt 0:0:15]} Nf5 {[%emt 0:0:41]} 13. a3 {[%emt 0:0:37]} Rc8 {[%emt 0:0:26]} 14. b4 {[%emt 0:0:10]} Qe7 {[%emt 0:0:0]} 15. Ra2 {[%emt 0:0:43]} d4 {[%emt 0:0:48]} 16. c4 {[%emt 0:0:56]} b5 {[%emt 0:0:1]} 17. g4 {[%emt 0:0:54]} Nxh4 {[%emt 0:0:43]} 18. Nxh4 {[%emt 0:0:3]
} Qxh4 {[%emt 0:0:1]} 19. Bg3 {[%emt 0:0:12]} Qd8 {[%emt 0:0:0]} 20. cxb5 {[%emt 0:1:48]} Bxb5 {[%emt 0:0:5]} 21. bxc5 {[%emt 0:0:6]} Ne7 {[%emt 0:0:21]} 22. Nd2 {[%emt 0:0:48]} Nd5 {[%emt 0:2:19]} 23. Ne4 {[%emt 0:0:15]
} Nc3 {[%emt 0:0:1]} 24. Nxc3 {[%emt 0:0:5]} dxc3 {[%emt 0:0:0]} 25. d4 {[%emt 0:0:19]} Qa5 {[%emt 0:0:1]} 26. Qc1 {[%emt 0:1:39]} Rfd8 {[%emt 0:0:10]} 27. Rc2 {[%emt 0:0:29]} Rxd4 {[%emt 0:0:13]} 28. Rxc3 {[%emt 0:0:1]
} Bc6 {[%emt 0:0:6]} 29. Qe3 {[%emt 0:0:35]} Rd7 {[%emt 0:0:0]} 30. Rec1 {[%emt 0:0:33]} Bxg2 {[%emt 0:0:5]} 31. Kxg2 {[%emt 0:0:1]} Rc6 {[%emt 0:0:1]} 32. Bf4 {[%emt 0:1:58]} g5 {[%emt 0:0:18]} 33. Bg3 {[%emt 0:0:2]
} Rd5 {[%emt 0:0:1]} 34. f4 {[%emt 0:0:7]} gxf4 {[%emt 0:0:0]} 35. Bxf4 {[%emt 0:0:1]} Qc7 {[%emt 0:0:0]} 36. R3c2 {[%emt 0:1:4]} Bxe5 {[%emt 0:0:38]} 37. Bxh6 {[%emt 0:0:5]} Bd4 {[%emt 0:0:2]} 38. Qe4 {[%emt 0:0:16]
} Rdxc5 {[%emt 0:0:55]} 39. Rxc5 {[%emt 0:0:6]} Rxc5 {[%emt 0:0:0]} 40. Qxd4 {[%emt 0:0:7]} 1-0

[Event "FIDE World Rapid-ch Open 2018"]
[White "Roiz, Michael"]
[Black "Anisimov, Pavel"]
[Site "St. Petersburg"]
[Round "13.61"]
[Annotator "ChessBase"]
[Result "1-0"]
[Date "2018.12.28"]
[WhiteElo "2605"]
[BlackElo "2533"]
[PlyCount "95"]
[TimeControl "900+10"]

1. Nf3 {[%emt 0:0:30]} d5 {[%emt 0:0:1]} 2. g3 {[%emt 0:0:8]} c5 {[%emt 0:0:0]} 3. Bg2 {[%emt 0:0:2]} Nc6 {[%emt 0:0:1]} 4. d4 {[%emt 0:0:2]} e6 {[%emt 0:0:10]} 5. 0-0 {[%emt 0:0:4]} Qb6 {[%emt 0:0:3]} 6. c4 {[%emt 0:0:0]} cxd4 {[%emt 0:1:19]} 7. cxd5 {[%emt 0:0:31]} exd5 {[%emt 0:0:3]} 8. Nbd2 {[%emt 0:0:9]} g6 {[%emt 0:1:37]} 9. Nb3 {[%emt 0:0:23]} Bg7 {[%emt 0:0:0]} 10. e3 {[%emt 0:1:3]} d3 {[%emt 0:2:1]} 11. Qxd3 {[%emt 0:0:17]} Nf6 {[%emt 0:0:9]} 12. Nbd4 {[%emt 0:0:57]} 0-0 {[%emt 0:0:12]} 13. b3 {[%emt 0:0:18]
} Ne4 {[%emt 0:1:16]} 14. Bb2 {[%emt 0:0:26]} Re8 {[%emt 0:0:0]} 15. Qc2 {[%emt 0:3:1]} Bd7 {[%emt 0:2:19]} 16. Nxc6 {[%emt 0:0:3]} bxc6 {[%emt 0:0:17]} 17. Bxg7 {[%emt 0:0:12]} Kxg7 {[%emt 0:0:1]} 18. Rac1 {[%emt 0:0:21]} Rac8 {[%emt 0:0:16]} 19. Rfd1 {[%emt 0:0:37]} Kg8 {[%emt 0:0:0]} 20. Qb2 {[%emt 0:1:19]} a5 {[%emt 0:1:16]} 21. Ne5 {[%emt 0:0:36]} Be6 {[%emt 0:0:49]} 22. Bxe4 {[%emt 0:1:12]} dxe4 {[%emt 0:0:1]} 23. Nd7 {[%emt 0:0:1]
} Bxd7 {[%emt 0:0:15]} 24. Rxd7 {[%emt 0:0:1]} Rcd8 {[%emt 0:0:0]} 25. Qd2 {[%emt 0:0:33]} Rxd7 {[%emt 0:0:27]} 26. Qxd7 {[%emt 0:0:1]
} Rd8 {[%emt 0:0:58]} 27. Qxc6 {[%emt 0:0:52]} Qxc6 {[%emt 0:0:2]} 28. Rxc6 {[%emt 0:0:1]} Rd2 {[%emt 0:0:20]} 29. a4 {[%emt 0:0:15]} Rb2 {[%emt 0:0:0]} 30. Rb6 {[%emt 0:0:6]} h5 {[%emt 0:0:23]} 31. h3 Kg7 {[%emt 0:0:30]} 32. g4 {[%emt 0:0:50]} hxg4 {[%emt 0:1:10]} 33. hxg4 {[%emt 0:0:1]} g5 {[%emt 0:0:25]
} 34. Rb5 {[%emt 0:0:38]} f6 {[%emt 0:0:4]} 35. Rxa5 {[%emt 0:0:0]} Rxb3 {[%emt 0:0:1]} 36. Rb5 {[%emt 0:0:1]} Ra3 {[%emt 0:0:12]} 37. Rb4 {[%emt 0:0:1]} Kg6 {[%emt 0:1:32]} 38. Rxe4 {[%emt 0:0:2]} Ra2 {[%emt 0:0:4]
} 39. Kg2 {[%emt 0:0:7]} Kf7 {[%emt 0:0:6]} 40. Kg3 {[%emt 0:0:0]} Ra1 {[%emt 0:0:4]} 41. f4 {[%emt 0:0:30]} gxf4+ {[%emt 0:0:17]} 42. exf4 {[%emt 0:0:1]} Kg6 {[%emt 0:0:11]} 43. f5+ {[%emt 0:0:51]} Kg5 {[%emt 0:0:7]
} 44. Kf3 {[%emt 0:0:2]} Kh4 {[%emt 0:0:21]} 45. Rc4 {[%emt 0:0:0]} Ra3+ {[%emt 0:0:12]} 46. Ke2 {[%emt 0:0:2]} Kg3 {[%emt 0:0:17]} 47. Kd2 {[%emt 0:0:0]} Kf3 {[%emt 0:0:10]} 48. Rc3+ {[%emt 0:0:8]} 1-0

[Event "FIDE World Rapid-ch Open 2018"]
[White "Tsydypov, Zhamsaran"]
[Black "Gutenev, Alexander"]
[Site "St. Petersburg"]
[Round "13.62"]
[Annotator "ChessBase"]
[Result "1-0"]
[Date "2018.12.28"]
[WhiteElo "2529"]
[BlackElo "2456"]
[PlyCount "63"]
[TimeControl "900+10"]

1. c4 {[%emt 0:0:0]} Nf6 {[%emt 0:0:20]} 2. Nf3 {[%emt 0:0:4]} g6 {[%emt 0:0:2]
} 3. Nc3 {[%emt 0:0:3]} d5 {[%emt 0:0:2]} 4. cxd5 {[%emt 0:0:0]} Nxd5 {[%emt 0:0:1]} 5. h4 {[%emt 0:0:16]} Nxc3 {[%emt 0:0:36]} 6. bxc3 {[%emt 0:0:1]} h6 {[%emt 0:0:16]} 7. d4 {[%emt 0:0:15]} Bg7 {[%emt 0:0:0]} 8. Bf4 {[%emt 0:0:17]} c5 {[%emt 0:0:49]} 9. Qd2 {[%emt 0:1:45]} Qa5 {[%emt 0:1:6]} 10. Rc1 {[%emt 0:0:10]} Bf5 {[%emt 0:1:2]} 11. h5 {[%emt 0:0:0]} g5 {[%emt 0:3:24]} 12. Be5 {[%emt 0:0:6]} f6 {[%emt 0:0:29]} 13. Bg3 {[%emt 0:0:22]} Nc6 {[%emt 0:0:25]} 14. e3 {[%emt 0:0:25]} 0-0 {[%emt 0:0:0]} 15. d5 {[%emt 0:0:32]} Rad8 {[%emt 0:0:33]} 16. Qb2 {[%emt 0:6:18]} Ne5 {[%emt 0:2:5]} 17. Nxe5 {[%emt 0:0:15]} fxe5 {[%emt 0:0:1]} 18. Bc4 {[%emt 0:0:29]
} Kh8 {[%emt 0:1:29]} 19. Qxb7 {[%emt 0:0:14]} Rb8 {[%emt 0:0:0]} 20. Qxe7 {[%emt 0:0:35]} Rfe8 {[%emt 0:0:2]} 21. Qd6 {[%emt 0:0:15]} Rb6 {[%emt 0:2:19]} 22. Qc7 {[%emt 0:0:3]} Qa4 {[%emt 0:0:4]} 23. Bb3 {[%emt 0:1:38]
} Qb5 {[%emt 0:0:1]} 24. d6 {[%emt 0:0:37]} Rb7 {[%emt 0:0:0]} 25. Ba4 {[%emt 0:0:1]} Qb2 {[%emt 0:0:2]} 26. Qxb7 {[%emt 0:0:10]} Qxc1+ {[%emt 0:0:51]} 27. Ke2 {[%emt 0:0:2]} Qxh1 {[%emt 0:0:12]} 28. Bxe8 {[%emt 0:0:13]} e4 {[%emt 0:0:23]} 29. Bd7 {[%emt 0:0:9]} Bxc3 {[%emt 0:0:0]} 30. Be5+ {[%emt 0:0:7]} Bxe5 {[%emt 0:0:11]} 31. Bxf5 {[%emt 0:0:2]} Qxh5+ {[%emt 0:0:12]} 32. g4 {[%emt 0:0:1]} 1-0

[Event "FIDE World Rapid-ch Open 2018"]
[White "Bindrich, Falko"]
[Black "Teterev, Vitaly"]
[Site "St. Petersburg"]
[Round "13.63"]
[Annotator "ChessBase"]
[Result "1-0"]
[Date "2018.12.28"]
[WhiteElo "2606"]
[BlackElo "2486"]
[PlyCount "107"]
[TimeControl "900+10"]

1. d4 {[%emt 0:0:0]} Nf6 {[%emt 0:0:0]} 2. c4 {[%emt 0:0:0]} g6 {[%emt 0:0:0]} 3. Nf3 {[%emt 0:0:0]} Bg7 {[%emt 0:0:0]} 4. e3 {[%emt 0:0:0]} 0-0 {[%emt 0:0:0]} 5. Be2 {[%emt 0:0:0]} d6 {[%emt 0:0:3]} 6. 0-0 {[%emt 0:0:0]} Nbd7 {[%emt 0:0:2]} 7. Nc3 {[%emt 0:0:2]} e5 {[%emt 0:0:2]} 8. b3 {[%emt 0:0:7]} Re8 {[%emt 0:0:8]} 9. Bb2 {[%emt 0:0:7]} e4 {[%emt 0:0:0]} 10. Nd2 {[%emt 0:0:2]} Nf8 {[%emt 0:0:2]} 11. Nd5 {[%emt 0:0:8]} Nxd5 {[%emt 0:0:10]} 12. cxd5 {[%emt 0:0:2]} Qg5 {[%emt 0:0:2]} 13. Re1 {[%emt 0:1:24]
} Qxd5 {[%emt 0:0:8]} 14. Qc2 {[%emt 0:0:2]} c6 {[%emt 0:0:0]} 15. b4 {[%emt 0:0:24]} a6 {[%emt 0:1:12]} 16. Nc4 {[%emt 0:0:50]} Nd7 {[%emt 0:0:3]
} 17. f3 {[%emt 0:0:10]} exf3 {[%emt 0:0:47]} 18. Bxf3 {[%emt 0:0:5]
} Qe6 {[%emt 0:0:1]} 19. e4 {[%emt 0:0:10]} Qe7 {[%emt 0:0:0]} 20. Rad1 {[%emt 0:2:55]} Nf6 {[%emt 0:0:55]} 21. h3 {[%emt 0:1:57]} Rd8 {[%emt 0:2:29]} 22. d5 {[%emt 0:0:28]} cxd5 {[%emt 0:0:30]} 23. Nb6 {[%emt 0:0:2]
} Rb8 {[%emt 0:0:39]} 24. exd5 {[%emt 0:1:44]} Qf8 {[%emt 0:0:0]} 25. Qc7 {[%emt 0:1:52]} Bf5 {[%emt 0:0:34]} 26. g4 {[%emt 0:0:2]} Ne8 {[%emt 0:1:6]} 27. Bxg7 {[%emt 0:2:12]} Qxg7 {[%emt 0:0:16]} 28. Qe7 {[%emt 0:0:12]
} Bc2 {[%emt 0:0:27]} 29. Rc1 {[%emt 0:0:42]} Qd4+ {[%emt 0:0:0]} 30. Qe3 {[%emt 0:0:2]} Qd3 {[%emt 0:0:30]} 31. Qxd3 {[%emt 0:1:5]} Bxd3 {[%emt 0:0:1]} 32. Re3 {[%emt 0:0:1]} Bb5 {[%emt 0:0:9]} 33. a4 {[%emt 0:0:1]
} Bd7 {[%emt 0:0:9]} 34. Re7 {[%emt 0:0:3]} Bc8 {[%emt 0:0:0]} 35. Nxc8 {[%emt 0:1:30]} Rdxc8 {[%emt 0:0:30]} 36. Rxc8 {[%emt 0:0:2]} Rxc8 {[%emt 0:0:2]} 37. Rxb7 {[%emt 0:0:2]} Kf8 {[%emt 0:0:56]} 38. Be2 {[%emt 0:0:39]
} Ra8 {[%emt 0:0:14]} 39. g5 {[%emt 0:0:22]} a5 {[%emt 0:0:5]
} 40. b5 {[%emt 0:0:3]} Ng7 {[%emt 0:0:41]} 41. Bg4 {[%emt 0:0:18]} Nf5 {[%emt 0:0:1]
} 42. Bxf5 {[%emt 0:0:5]} gxf5 {[%emt 0:0:1]} 43. Rb6 {[%emt 0:0:33]
} Re8 {[%emt 0:1:17]} 44. Ra6 {[%emt 0:0:7]} Re2 {[%emt 0:0:0]} 45. Rxa5 {[%emt 0:0:4]} Rb2 {[%emt 0:0:12]} 46. Ra6 {[%emt 0:0:5]} Rb4 {[%emt 0:0:43]} 47. b6 {[%emt 0:0:2]} Kg7 {[%emt 0:0:6]} 48. a5 {[%emt 0:0:3]
} Kg6 {[%emt 0:0:1]} 49. Ra7 {[%emt 0:0:2]} Kxg5 {[%emt 0:0:0]} 50. Rxf7 {[%emt 0:0:23]} Kf4 {[%emt 0:0:11]} 51. Kf2 {[%emt 0:0:14]} Rb2+ {[%emt 0:0:4]} 52. Ke1 {[%emt 0:0:1]} Ke3 {[%emt 0:0:36]} 53. Re7+ {[%emt 0:0:11]
} Kd4 {[%emt 0:0:12]} 54. b7 {[%emt 0:0:5]} 1-0

[Event "FIDE World Rapid-ch Open 2018"]
[White "Zhigalko, Andrey"]
[Black "Bosiocic, Marin"]
[Site "St. Petersburg"]
[Round "13.64"]
[Annotator "ChessBase"]
[Result "0-1"]
[Date "2018.12.28"]
[WhiteElo "2545"]
[BlackElo "2599"]
[PlyCount "54"]
[TimeControl "900+10"]

1. e4 {[%emt 0:0:0]} e5 {[%emt 0:0:0]} 2. Nf3 {[%emt 0:0:0]} Nc6 {[%emt 0:0:0]
} 3. Bb5 {[%emt 0:0:0]} a6 {[%emt 0:0:0]} 4. Ba4 {[%emt 0:0:0]} b5 {[%emt 0:0:0]} 5. Bb3 {[%emt 0:0:0]} g6 {[%emt 0:0:0]} 6. Nc3 {[%emt 0:0:28]
} Bg7 {[%emt 0:0:14]} 7. a4 {[%emt 0:0:3]} b4 {[%emt 0:0:1]} 8. Nd5 {[%emt 0:0:2]} Nge7 {[%emt 0:0:11]} 9. d4 {[%emt 0:1:6]} exd4 {[%emt 0:0:48]
} 10. Bg5 {[%emt 0:1:35]} h6 {[%emt 0:0:28]} 11. Bf6 {[%emt 0:0:0]} Bxf6 {[%emt 0:0:21]} 12. Nxf6+ {[%emt 0:0:1]} Kf8 {[%emt 0:0:3]} 13. Nxd4 {[%emt 0:1:7]} Kg7 {[%emt 0:0:3]} 14. 0-0 {[%emt 0:2:43]} Rf8 {[%emt 0:1:57]
} 15. Nd5 {[%emt 0:1:59]} Na5 {[%emt 0:1:8]} 16. Ba2 {[%emt 0:0:0]} Nxd5 {[%emt 0:0:27]} 17. exd5 {[%emt 0:0:36]} c5 {[%emt 0:0:47]} 18. dxc6 {[%emt 0:0:39]} dxc6 {[%emt 0:0:3]} 19. c3 {[%emt 0:0:16]} Rb8 {[%emt 0:0:9]
} 20. Qc2 {[%emt 0:2:22]} b3 {[%emt 0:1:5]} 21. Bxb3 {[%emt 0:0:0]} Nxb3 {[%emt 0:0:8]} 22. Nxc6 {[%emt 0:0:24]} Nxa1 {[%emt 0:0:35]} 23. Rxa1 {[%emt 0:0:1]} Qc7 {[%emt 0:0:3]} 24. Nxb8 {[%emt 0:0:2]} Qxb8 {[%emt 0:0:1]
} 25. c4 {[%emt 0:0:13]} Qe5 {[%emt 0:0:6]} 26. a5 {[%emt 0:0:0]} Bf5 {[%emt 0:0:4]} 27. Qd2 {[%emt 0:0:18]} Rb8 {[%emt 0:0:6]} 0-1

[Event "FIDE World Rapid-ch Open 2018"]
[White "Huzman, Alexander"]
[Black "Tissir, Mohamed"]
[Site "St. Petersburg"]
[Round "13.65"]
[Annotator "ChessBase"]
[Result "1-0"]
[Date "2018.12.28"]
[WhiteElo "2580"]
[BlackElo "2387"]
[PlyCount "73"]
[TimeControl "900+10"]

1. d4 {[%emt 0:0:0]} e6 {[%emt 0:0:0]} 2. Nf3 {[%emt 0:0:6]} Nf6 {[%emt 0:0:17]
} 3. c4 {[%emt 0:0:6]} d5 {[%emt 0:0:5]} 4. g3 {[%emt 0:0:0]} dxc4 {[%emt 0:0:11]} 5. Bg2 {[%emt 0:0:2]} Bb4+ {[%emt 0:0:0]} 6. Bd2 {[%emt 0:0:23]} Be7 {[%emt 0:0:2]} 7. Qa4+ {[%emt 0:0:33]} Bd7 {[%emt 0:0:0]} 8. Qxc4 Bc6 9. Nc3 {[%emt 0:0:37]} 0-0 {[%emt 0:0:4]} 10. 0-0 {[%emt 0:0:0]} a5 {[%emt 0:0:5]} 11. Rac1 {[%emt 0:2:42]} Nbd7 {[%emt 0:3:2]} 12. Rfd1 {[%emt 0:0:39]} h6 {[%emt 0:0:31]} 13. Qd3 {[%emt 0:0:21]} Re8 {[%emt 0:0:41]
} 14. Be1 {[%emt 0:0:28]} Bxf3 {[%emt 0:0:4]} 15. Qxf3 {[%emt 0:0:18]
} c6 {[%emt 0:0:1]} 16. e4 {[%emt 0:0:1]} Qb6 {[%emt 0:0:33]
} 17. Qe2 {[%emt 0:0:2]} a4 {[%emt 0:1:29]} 18. a3 {[%emt 0:0:24]} e5 {[%emt 0:0:53]
} 19. dxe5 {[%emt 0:0:14]} Nxe5 {[%emt 0:0:1]} 20. h3 {[%emt 0:0:2]
} g5 {[%emt 0:2:45]} 21. Qc2 {[%emt 0:1:2]} Qa7 {[%emt 0:0:0]} 22. Ne2 {[%emt 0:0:2]} g4 {[%emt 0:0:30]} 23. hxg4 {[%emt 0:0:52]} Nfxg4 {[%emt 0:0:0]} 24. Nd4 {[%emt 0:0:2]} Rad8 {[%emt 0:0:11]} 25. Nf5 {[%emt 0:0:13]
} Bg5 {[%emt 0:0:2]} 26. Rb1 {[%emt 0:1:52]} h5 {[%emt 0:0:0]} 27. Kh1 {[%emt 0:0:52]} Rxd1 {[%emt 0:0:47]} 28. Rxd1 {[%emt 0:0:2]} Rd8 {[%emt 0:0:1]} 29. Rxd8+ {[%emt 0:1:7]} Bxd8 {[%emt 0:0:1]} 30. f3 {[%emt 0:0:2]
} Ne3 {[%emt 0:0:25]} 31. Qd2 {[%emt 0:1:30]} Bb6 {[%emt 0:0:0]} 32. Nxe3 {[%emt 0:1:12]} Bxe3 {[%emt 0:0:1]} 33. Qd8+ {[%emt 0:0:1]} Kg7 {[%emt 0:2:8]} 34. Bc3 {[%emt 0:0:1]} f6 {[%emt 0:0:16]} 35. Qe7+ {[%emt 0:0:9]
} Kg8 {[%emt 0:1:20]} 36. Qxf6 {[%emt 0:0:23]} Bd4 {[%emt 0:0:0]} 37. Qd8+ {[%emt 0:0:1]} 1-0